[Event "*** SCC Grand Prix: Titled Tuesday Blitz"]
[Site "Chess.com"]
[Date "2020.10.13"]
[Round "5"]
[White "ViditYT"]
[Black "Ermito2020"]
[Result "1-0"]
[WhiteElo "2857"]
[BlackElo "2674"]
[TimeControl "180+1"]
[EndTime "10:55:19 PDT"]
[Termination "ViditYT won by resignation"]

1. d4 {[%clk 0:02:14.9]} 1... e6 {[%clk 0:02:59.3]} 2. Nf3 {[%clk 0:02:10.8]}
2... f5 {[%clk 0:02:59.1]} 3. c4 {[%clk 0:02:10.9]} 3... Nf6 {[%clk 0:02:59.4]}
4. g3 {[%clk 0:02:11.5]} 4... Be7 {[%clk 0:02:59.8]} 5. Bg2 {[%clk 0:02:12.1]}
5... O-O {[%clk 0:03:00.3]} 6. O-O {[%clk 0:02:12.6]} 6... d5 {[%clk 0:03:00.9]}
7. Nc3 {[%clk 0:02:12.9]} 7... c6 {[%clk 0:03:00.2]} 8. b3 {[%clk 0:02:13.4]}
8... Ne4 {[%clk 0:03:00]} 9. Bb2 {[%clk 0:02:14]} 9... Nd7 {[%clk 0:02:56.5]}
10. e3 {[%clk 0:02:14.5]} 10... b6 {[%clk 0:02:55.1]} 11. Rc1 {[%clk 0:02:13.7]}
11... Ba6 {[%clk 0:02:45.8]} 12. Re1 {[%clk 0:02:11.9]} 12... Rc8 {[%clk
0:02:40.7]} 13. Ne2 {[%clk 0:02:11]} 13... Bb4 {[%clk 0:02:38.3]} 14. Rf1 {[%clk
0:02:09.7]} 14... Bd6 {[%clk 0:02:32.3]} 15. Nf4 {[%clk 0:02:09.2]} 15... Qe8
{[%clk 0:02:23.9]} 16. Nd3 {[%clk 0:02:05.3]} 16... c5 {[%clk 0:02:16.3]} 17.
dxc5 {[%clk 0:01:47.8]} 17... bxc5 {[%clk 0:02:02.2]} 18. Re1 {[%clk 0:01:40.8]}
18... dxc4 {[%clk 0:01:57.7]} 19. bxc4 {[%clk 0:01:41.7]} 19... Qe7 {[%clk
0:01:57.8]} 20. Qc2 {[%clk 0:01:18.2]} 20... Rfd8 {[%clk 0:01:45.5]} 21. Red1
{[%clk 0:01:17.6]} 21... Rb8 {[%clk 0:01:45.3]} 22. Ba1 {[%clk 0:01:16.9]} 22...
e5 {[%clk 0:01:37.3]} 23. Nde1 {[%clk 0:01:10.5]} 23... Nef6 {[%clk 0:01:32.4]}
24. Qxf5 {[%clk 0:01:08.6]} 24... Rb4 {[%clk 0:01:25.6]} 25. Bf1 {[%clk
0:00:53.4]} 25... e4 {[%clk 0:01:22.5]} 26. Ng5 {[%clk 0:00:53.2]} 26... h6
{[%clk 0:01:15.6]} 27. Qe6+ {[%clk 0:00:48]} 27... Kf8 {[%clk 0:01:05.5]} 28.
Qxd6 {[%clk 0:00:41.5]} 28... hxg5 {[%clk 0:00:57.5]} 29. Qxa6 {[%clk
0:00:40.9]} 29... Ng4 {[%clk 0:00:54.8]} 30. Qg6 {[%clk 0:00:37.6]} 30... Rb6
{[%clk 0:00:47.6]} 31. Qf5+ {[%clk 0:00:37.7]} 31... Ndf6 {[%clk 0:00:47.9]} 32.
Rxd8+ {[%clk 0:00:36.5]} 32... Qxd8 {[%clk 0:00:48.8]} 33. Bc3 {[%clk
0:00:32.1]} 33... Rd6 {[%clk 0:00:46.2]} 34. Qxc5 {[%clk 0:00:31.6]} 34... Kg8
{[%clk 0:00:46]} 35. Be2 {[%clk 0:00:31.6]} 35... Rd2 {[%clk 0:00:41]} 36. Bxg4
{[%clk 0:00:25.5]} 36... Nxg4 {[%clk 0:00:40.5]} 37. Bxd2 {[%clk 0:00:25.3]}
37... Qxd2 {[%clk 0:00:40.6]} 38. Qd5+ {[%clk 0:00:25.9]} 38... Qxd5 {[%clk
0:00:40.2]} 39. cxd5 {[%clk 0:00:26.8]} 1-0

[Event "*** SCC Grand Prix: Titled Tuesday Blitz"]
[Site "Chess.com"]
[Date "2020.10.13"]
[Round "5"]
[White "ManuDavid2910"]
[Black "rasmussvane"]
[Result "0-1"]
[WhiteElo "2654"]
[BlackElo "2902"]
[TimeControl "180+1"]
[EndTime "10:55:19 PDT"]
[Termination "rasmussvane won by resignation"]

1. e4 {[%clk 0:03:00.3]} 1... c6 {[%clk 0:02:59.8]} 2. Nf3 {[%clk 0:03:00.7]}
2... d5 {[%clk 0:03:00.7]} 3. Nc3 {[%clk 0:03:00.2]} 3... dxe4 {[%clk
0:03:01.1]} 4. Nxe4 {[%clk 0:03:01.1]} 4... Nf6 {[%clk 0:03:01.7]} 5. Neg5
{[%clk 0:03:01.2]} 5... h6 {[%clk 0:02:58.1]} 6. Nxf7 {[%clk 0:03:01.6]} 6...
Kxf7 {[%clk 0:02:59]} 7. Ne5+ {[%clk 0:03:02.4]} 7... Kg8 {[%clk 0:02:59.1]} 8.
Ng6 {[%clk 0:03:02.1]} 8... Bf5 {[%clk 0:02:49.8]} 9. Bc4+ {[%clk 0:03:02.2]}
9... e6 {[%clk 0:02:49.4]} 10. Nxh8 {[%clk 0:03:01.2]} 10... Kxh8 {[%clk
0:02:48.8]} 11. O-O {[%clk 0:03:02.1]} 11... Bd6 {[%clk 0:02:39.2]} 12. d4
{[%clk 0:03:01.5]} 12... Nbd7 {[%clk 0:02:32.8]} 13. Re1 {[%clk 0:03:00.7]}
13... e5 {[%clk 0:02:21]} 14. h3 {[%clk 0:02:50.4]} 14... e4 {[%clk 0:02:11.5]}
15. Bb3 {[%clk 0:02:46.1]} 15... Qe8 {[%clk 0:02:00.8]} 16. c4 {[%clk
0:02:38.6]} 16... Qg6 {[%clk 0:02:00.3]} 17. Kh1 {[%clk 0:02:34.7]} 17... Rf8
{[%clk 0:01:33.8]} 18. Be3 {[%clk 0:02:33.1]} 18... Ng4 {[%clk 0:01:05.1]} 19.
d5 {[%clk 0:02:19.6]} 19... Nxe3 {[%clk 0:01:03]} 20. Rxe3 {[%clk 0:02:20.5]}
20... Bf4 {[%clk 0:00:55.1]} 21. Re2 {[%clk 0:02:20.4]} 21... Bc7 {[%clk
0:00:47.1]} 22. dxc6 {[%clk 0:02:17.6]} 22... bxc6 {[%clk 0:00:46.9]} 23. Bc2
{[%clk 0:02:15.1]} 23... Ne5 {[%clk 0:00:43.3]} 24. Qd4 {[%clk 0:02:06.9]} 24...
Nd3 {[%clk 0:00:42.6]} 25. Bxd3 {[%clk 0:01:21.8]} 25... exd3 {[%clk 0:00:43.5]}
26. Re7 {[%clk 0:01:22.6]} 26... Rd8 {[%clk 0:00:42.4]} 27. Qc3 {[%clk
0:01:20.9]} 27... d2 {[%clk 0:00:37.8]} 28. Rd1 {[%clk 0:01:19]} 28... Bf4
{[%clk 0:00:36.3]} 29. Qa5 {[%clk 0:01:15]} 29... Rf8 {[%clk 0:00:31.1]} 30.
Qxa7 {[%clk 0:01:06.3]} 30... Be4 {[%clk 0:00:25.1]} 31. f3 {[%clk 0:00:47.8]}
31... Qg3 {[%clk 0:00:24.4]} 32. Qg1 {[%clk 0:00:42.1]} 32... Bxf3 {[%clk
0:00:22.9]} 0-1

[Event "*** SCC Grand Prix: Titled Tuesday Blitz"]
[Site "Chess.com"]
[Date "2020.10.13"]
[Round "5"]
[White "Jospem"]
[Black "chenxiaoyuer"]
[Result "1-0"]
[WhiteElo "2940"]
[BlackElo "2538"]
[TimeControl "180+1"]
[EndTime "10:55:22 PDT"]
[Termination "Jospem won by resignation"]

1. e4 {[%clk 0:03:00.9]} 1... c5 {[%clk 0:02:59.7]} 2. Nf3 {[%clk 0:03:00.9]}
2... d6 {[%clk 0:02:59.9]} 3. c3 {[%clk 0:03:00.9]} 3... Nf6 {[%clk 0:02:56.9]}
4. h3 {[%clk 0:03:00.7]} 4... Nc6 {[%clk 0:02:51.1]} 5. Bd3 {[%clk 0:03:00.6]}
5... d5 {[%clk 0:02:48.1]} 6. e5 {[%clk 0:02:56]} 6... c4 {[%clk 0:02:45.9]} 7.
Bc2 {[%clk 0:02:53.2]} 7... Nd7 {[%clk 0:02:44.5]} 8. Qe2 {[%clk 0:02:53.7]}
8... g6 {[%clk 0:02:38.3]} 9. d4 {[%clk 0:02:46.6]} 9... cxd3 {[%clk 0:02:36.5]}
10. Bxd3 {[%clk 0:02:47]} 10... Bg7 {[%clk 0:02:35.6]} 11. Bf4 {[%clk
0:02:46.4]} 11... Nc5 {[%clk 0:02:30.9]} 12. O-O {[%clk 0:02:36.5]} 12... O-O
{[%clk 0:02:24.3]} 13. Bc2 {[%clk 0:02:18.2]} 13... b6 {[%clk 0:02:21.2]} 14.
Rd1 {[%clk 0:02:17.1]} 14... Ba6 {[%clk 0:02:10.3]} 15. Qe3 {[%clk 0:02:11.5]}
15... Ne6 {[%clk 0:01:25]} 16. Bh6 {[%clk 0:02:06.9]} 16... d4 {[%clk
0:01:11.7]} 17. cxd4 {[%clk 0:01:59.8]} 17... Nexd4 {[%clk 0:00:52.1]} 18. Nxd4
{[%clk 0:00:35.8]} 18... Bxh6 {[%clk 0:00:51]} 19. Nxc6 {[%clk 0:00:26.6]} 19...
Qxd1+ {[%clk 0:00:30]} 20. Bxd1 {[%clk 0:00:27.5]} 20... Bxe3 {[%clk 0:00:30.2]}
21. fxe3 {[%clk 0:00:28.4]} 21... Bb7 {[%clk 0:00:25.2]} 22. Nd4 {[%clk
0:00:28.4]} 22... Rfd8 {[%clk 0:00:21.4]} 23. Nc3 {[%clk 0:00:26.8]} 23... Rac8
{[%clk 0:00:21.6]} 24. Bb3 {[%clk 0:00:26.7]} 24... Rc5 {[%clk 0:00:21]} 25. Rf1
{[%clk 0:00:21.7]} 25... e6 {[%clk 0:00:19.7]} 26. Bxe6 {[%clk 0:00:21.5]} 26...
fxe6 {[%clk 0:00:19.2]} 27. Nxe6 {[%clk 0:00:22.4]} 27... Rxc3 {[%clk
0:00:16.2]} 28. Nxd8 {[%clk 0:00:20.5]} 1-0

[Event "*** SCC Grand Prix: Titled Tuesday Blitz"]
[Site "Chess.com"]
[Date "2020.10.13"]
[Round "5"]
[White "m_ezat"]
[Black "wanyaland"]
[Result "1-0"]
[WhiteElo "2529"]
[BlackElo "2305"]
[TimeControl "180+1"]
[EndTime "10:55:25 PDT"]
[Termination "m_ezat won by resignation"]

1. d4 {[%clk 0:03:00.9]} 1... d5 {[%clk 0:02:59.5]} 2. c4 {[%clk 0:02:58.8]}
2... e6 {[%clk 0:02:58.5]} 3. Nc3 {[%clk 0:02:59.2]} 3... Nf6 {[%clk 0:02:58.6]}
4. cxd5 {[%clk 0:02:56.8]} 4... exd5 {[%clk 0:02:57.2]} 5. Bg5 {[%clk 0:02:57]}
5... c6 {[%clk 0:02:57.2]} 6. Qc2 {[%clk 0:02:57]} 6... Nbd7 {[%clk 0:02:57.7]}
7. e3 {[%clk 0:02:57.1]} 7... Be7 {[%clk 0:02:57.5]} 8. Bd3 {[%clk 0:02:57.2]}
8... O-O {[%clk 0:02:57.9]} 9. Nf3 {[%clk 0:02:55.8]} 9... Re8 {[%clk
0:02:56.8]} 10. O-O {[%clk 0:02:55]} 10... Nf8 {[%clk 0:02:50.6]} 11. Rae1
{[%clk 0:02:55.2]} 11... g6 {[%clk 0:02:50.1]} 12. Ne5 {[%clk 0:02:54.4]} 12...
Ne6 {[%clk 0:02:49.2]} 13. Bh4 {[%clk 0:02:52.4]} 13... Ng7 {[%clk 0:02:48.5]}
14. e4 {[%clk 0:02:33.3]} 14... dxe4 {[%clk 0:02:24.1]} 15. Bc4 {[%clk
0:02:31.5]} 15... Be6 {[%clk 0:02:20.3]} 16. Bxf6 {[%clk 0:02:20.7]} 16... Bxf6
{[%clk 0:02:19.5]} 17. Nxe4 {[%clk 0:02:21.2]} 17... Be7 {[%clk 0:02:12.4]} 18.
Nc5 {[%clk 0:02:19.6]} 18... Qxd4 {[%clk 0:01:48.4]} 19. Nxe6 {[%clk 0:02:11.4]}
19... Nxe6 {[%clk 0:01:45.7]} 20. Nxf7 {[%clk 0:02:11.5]} 20... Bf6 {[%clk
0:01:32]} 21. Rxe6 {[%clk 0:01:44.9]} 21... Rxe6 {[%clk 0:01:30.8]} 22. Bxe6
{[%clk 0:01:44.7]} 22... Re8 {[%clk 0:01:30.2]} 23. Qb3 {[%clk 0:01:44.6]} 23...
Kg7 {[%clk 0:01:17.8]} 24. Rd1 {[%clk 0:01:32.6]} 24... Rxe6 {[%clk 0:01:12.1]}
25. g3 {[%clk 0:01:21.4]} 25... Qe4 {[%clk 0:00:50.1]} 26. Qxb7 {[%clk
0:01:11.8]} 26... Re7 {[%clk 0:00:46.8]} 27. Nd6 {[%clk 0:01:11.5]} 27... Qe2
{[%clk 0:00:40.1]} 28. Qb3 {[%clk 0:01:03.3]} 28... Qxb2 {[%clk 0:00:35.6]} 29.
Qc4 {[%clk 0:00:52.1]} 29... Re2 {[%clk 0:00:27.1]} 30. Ne4 {[%clk 0:00:44.3]}
30... Bd4 {[%clk 0:00:20.6]} 31. Qxd4+ {[%clk 0:00:39]} 31... Qxd4 {[%clk
0:00:19.1]} 32. Rxd4 {[%clk 0:00:39.7]} 1-0

[Event "*** SCC Grand Prix: Titled Tuesday Blitz"]
[Site "Chess.com"]
[Date "2020.10.13"]
[Round "5"]
[White "CzechmVIII"]
[Black "GM_Huschenbeth"]
[Result "1-0"]
[WhiteElo "2175"]
[BlackElo "2270"]
[TimeControl "180+1"]
[EndTime "10:55:27 PDT"]
[Termination "CzechmVIII won by resignation"]

1. e4 {[%clk 0:03:00.9]} 1... c5 {[%clk 0:02:14.4]} 2. Nf3 {[%clk 0:03:00]} 2...
d6 {[%clk 0:02:14.6]} 3. d4 {[%clk 0:03:00]} 3... cxd4 {[%clk 0:02:15.5]} 4.
Nxd4 {[%clk 0:03:00.5]} 4... Nf6 {[%clk 0:02:14.1]} 5. Nc3 {[%clk 0:03:01]} 5...
a6 {[%clk 0:02:14.8]} 6. Bg5 {[%clk 0:03:01.1]} 6... Nbd7 {[%clk 0:02:14.2]} 7.
Bc4 {[%clk 0:03:00.8]} 7... Qb6 {[%clk 0:02:13.3]} 8. O-O {[%clk 0:03:00.8]}
8... Qxb2 {[%clk 0:02:09.7]} 9. Nd5 {[%clk 0:02:39.7]} 9... Nxd5 {[%clk
0:02:06.5]} 10. Rb1 {[%clk 0:02:39.6]} 10... Qc3 {[%clk 0:02:06.4]} 11. Bxd5
{[%clk 0:02:32.6]} 11... e6 {[%clk 0:01:56.8]} 12. Bxb7 {[%clk 0:02:12.3]} 12...
Bxb7 {[%clk 0:01:32.9]} 13. Rxb7 {[%clk 0:02:12.1]} 13... h6 {[%clk 0:01:32.4]}
14. Be3 {[%clk 0:01:56.1]} 14... Be7 {[%clk 0:01:26.4]} 15. Qh5 {[%clk
0:01:46.3]} 15... Qc8 {[%clk 0:01:21.3]} 16. Rfb1 {[%clk 0:01:15.9]} 16... Nc5
{[%clk 0:01:18.3]} 17. Rxe7+ {[%clk 0:00:58]} 17... Kxe7 {[%clk 0:01:17.9]} 18.
e5 {[%clk 0:00:53.7]} 18... d5 {[%clk 0:00:38.7]} 19. Nf5+ {[%clk 0:00:31.5]}
19... exf5 {[%clk 0:00:38.4]} 20. Bxc5+ {[%clk 0:00:31.6]} 20... Qxc5 {[%clk
0:00:15.8]} 21. Rb7+ {[%clk 0:00:31.4]} 21... Kd8 {[%clk 0:00:16.1]} 22. Qxf7
{[%clk 0:00:30.6]} 22... Qc6 {[%clk 0:00:16.4]} 23. e6 {[%clk 0:00:16.7]} 23...
Re8 {[%clk 0:00:15.6]} 24. Rd7+ {[%clk 0:00:12.2]} 1-0

[Event "*** SCC Grand Prix: Titled Tuesday Blitz"]
[Site "Chess.com"]
[Date "2020.10.13"]
[Round "5"]
[White "exoticprincess"]
[Black "Aygehovit1992"]
[Result "1-0"]
[WhiteElo "2872"]
[BlackElo "2628"]
[TimeControl "180+1"]
[EndTime "10:55:31 PDT"]
[Termination "exoticprincess won by resignation"]

1. d4 {[%clk 0:03:00.8]} 1... d5 {[%clk 0:02:59.4]} 2. c4 {[%clk 0:03:00.5]}
2... e6 {[%clk 0:02:59.3]} 3. Nc3 {[%clk 0:02:59.8]} 3... Nf6 {[%clk 0:02:59.3]}
4. Bg5 {[%clk 0:02:59.5]} 4... Be7 {[%clk 0:02:58.3]} 5. e3 {[%clk 0:02:59.2]}
5... O-O {[%clk 0:02:54.3]} 6. Rc1 {[%clk 0:02:58.8]} 6... c6 {[%clk 0:02:54.3]}
7. a3 {[%clk 0:02:57.6]} 7... Nbd7 {[%clk 0:02:53.3]} 8. Nf3 {[%clk 0:02:55.7]}
8... h6 {[%clk 0:02:52.7]} 9. Bf4 {[%clk 0:02:55]} 9... Nh5 {[%clk 0:02:41.3]}
10. Be5 {[%clk 0:02:54.6]} 10... Nxe5 {[%clk 0:02:40.9]} 11. dxe5 {[%clk
0:02:52.4]} 11... f5 {[%clk 0:02:18.3]} 12. Be2 {[%clk 0:02:27.6]} 12... g6
{[%clk 0:02:04.8]} 13. O-O {[%clk 0:02:26.8]} 13... Ng7 {[%clk 0:02:03.6]} 14.
Qb3 {[%clk 0:02:17.3]} 14... Kh7 {[%clk 0:01:55.5]} 15. Rfd1 {[%clk 0:02:16.5]}
15... Rb8 {[%clk 0:01:49.5]} 16. Qa4 {[%clk 0:02:10.6]} 16... a6 {[%clk
0:01:47.3]} 17. Qc2 {[%clk 0:02:04.7]} 17... Bd7 {[%clk 0:01:37.4]} 18. g3
{[%clk 0:02:03.8]} 18... Be8 {[%clk 0:01:31.5]} 19. b4 {[%clk 0:01:53.4]} 19...
g5 {[%clk 0:01:30.3]} 20. cxd5 {[%clk 0:01:46.6]} 20... cxd5 {[%clk 0:01:29.2]}
21. Nd4 {[%clk 0:01:45.9]} 21... Bg6 {[%clk 0:01:22.2]} 22. f4 {[%clk
0:01:44.3]} 22... h5 {[%clk 0:01:18.9]} 23. Na4 {[%clk 0:01:37.2]} 23... h4
{[%clk 0:01:12.7]} 24. Nc5 {[%clk 0:01:36.9]} 24... Rc8 {[%clk 0:00:46.5]} 25.
Qb2 {[%clk 0:01:33]} 25... Bxc5 {[%clk 0:00:36.8]} 26. Rxc5 {[%clk 0:01:33]}
26... gxf4 {[%clk 0:00:25.6]} 27. exf4 {[%clk 0:01:25.7]} 27... Rxc5 {[%clk
0:00:17.3]} 28. bxc5 {[%clk 0:01:25.2]} 28... Qe7 {[%clk 0:00:17.6]} 29. Qb6
{[%clk 0:01:21.3]} 29... Rc8 {[%clk 0:00:16.7]} 30. Qd6 {[%clk 0:01:19.5]} 30...
Qf7 {[%clk 0:00:13.5]} 31. Rb1 {[%clk 0:01:19]} 31... Bh5 {[%clk 0:00:08.2]} 32.
Bd3 {[%clk 0:01:15.9]} 32... Rc7 {[%clk 0:00:03.4]} 33. Kf2 {[%clk 0:01:11.3]}
33... hxg3+ {[%clk 0:00:03.7]} 34. hxg3 {[%clk 0:01:11.3]} 34... Bg4 {[%clk
0:00:04.3]} 35. Rh1+ {[%clk 0:01:10.2]} 35... Kg8 {[%clk 0:00:04.3]} 36. Qd8+
{[%clk 0:01:09]} 36... Ne8 {[%clk 0:00:04.2]} 37. Rh6 {[%clk 0:01:05.5]} 37...
Rxc5 {[%clk 0:00:03.6]} 38. Nxe6 {[%clk 0:01:04.3]} 38... Rc3 {[%clk 0:00:03.5]}
39. Qg5+ {[%clk 0:01:03.1]} 39... Ng7 {[%clk 0:00:03.3]} 40. Nxg7 {[%clk
0:01:02.8]} 40... Rxd3 {[%clk 0:00:03.1]} 41. Ne6+ {[%clk 0:01:02.5]} 1-0

[Event "*** SCC Grand Prix: Titled Tuesday Blitz"]
[Site "Chess.com"]
[Date "2020.10.13"]
[Round "5"]
[White "mr65"]
[Black "PauloCesarCosta_sad"]
[Result "1/2-1/2"]
[WhiteElo "2152"]
[BlackElo "2259"]
[TimeControl "180+1"]
[EndTime "10:55:32 PDT"]
[Termination "Game drawn by repetition"]

1. e4 {[%clk 0:03:00.9]} 1... e6 {[%clk 0:02:58.6]} 2. d4 {[%clk 0:03:00.3]}
2... d5 {[%clk 0:02:59.1]} 3. Nc3 {[%clk 0:03:00.3]} 3... Nf6 {[%clk 0:02:58.7]}
4. e5 {[%clk 0:02:59.6]} 4... Nfd7 {[%clk 0:02:58.3]} 5. f4 {[%clk 0:02:59.5]}
5... c5 {[%clk 0:02:58.8]} 6. Nf3 {[%clk 0:02:59.5]} 6... Nc6 {[%clk 0:02:59.3]}
7. Be3 {[%clk 0:02:59.2]} 7... cxd4 {[%clk 0:02:59.9]} 8. Nxd4 {[%clk
0:02:58.3]} 8... Bc5 {[%clk 0:03:00.3]} 9. Qd2 {[%clk 0:02:58]} 9... O-O {[%clk
0:02:53.4]} 10. Be2 {[%clk 0:02:46.1]} 10... a6 {[%clk 0:02:31.5]} 11. O-O-O
{[%clk 0:02:45]} 11... Bxd4 {[%clk 0:02:10.1]} 12. Bxd4 {[%clk 0:02:44.4]} 12...
b5 {[%clk 0:02:11]} 13. a3 {[%clk 0:02:15.6]} 13... Rb8 {[%clk 0:02:03.9]} 14.
h4 {[%clk 0:02:07]} 14... b4 {[%clk 0:01:53.5]} 15. Nb1 {[%clk 0:02:06.8]} 15...
bxa3 {[%clk 0:01:39.7]} 16. Nxa3 {[%clk 0:02:06.3]} 16... f6 {[%clk 0:01:40.6]}
17. exf6 {[%clk 0:02:03.8]} 17... Nxf6 {[%clk 0:01:40.7]} 18. Bxf6 {[%clk
0:01:59.8]} 18... Qxf6 {[%clk 0:01:33]} 19. c3 {[%clk 0:01:59.5]} 19... Na5
{[%clk 0:01:28.4]} 20. Kb1 {[%clk 0:01:57.3]} 20... Nb3 {[%clk 0:01:21.9]} 21.
Qd3 {[%clk 0:01:50.4]} 21... Qxf4 {[%clk 0:01:16.9]} 22. Rdf1 {[%clk 0:01:49.6]}
22... Nd2+ {[%clk 0:01:09.3]} 23. Ka2 {[%clk 0:01:36.4]} 23... Nxf1 {[%clk
0:01:07.7]} 24. Rxf1 {[%clk 0:01:35.9]} 24... Qxh4 {[%clk 0:01:04.4]} 25. Bf3
{[%clk 0:01:25.9]} 25... Rf7 {[%clk 0:00:56.6]} 26. Qd1 {[%clk 0:01:21.9]} 26...
Rfb7 {[%clk 0:00:49.5]} 27. b4 {[%clk 0:01:18.4]} 27... Qe7 {[%clk 0:00:48.3]}
28. Be2 {[%clk 0:01:04.3]} 28... a5 {[%clk 0:00:43.7]} 29. Bd3 {[%clk
0:01:01.3]} 29... axb4 {[%clk 0:00:39.1]} 30. Qh5 {[%clk 0:01:00.2]} 30... g6
{[%clk 0:00:32.8]} 31. Bxg6 {[%clk 0:00:58.6]} 31... hxg6 {[%clk 0:00:21.9]} 32.
Qxg6+ {[%clk 0:00:55]} 32... Qg7 {[%clk 0:00:22.3]} 33. Qe8+ {[%clk 0:00:53.2]}
33... Kh7 {[%clk 0:00:19.2]} 34. Rh1+ {[%clk 0:00:50.9]} 34... Qh6 {[%clk
0:00:13.4]} 35. Rxh6+ {[%clk 0:00:49.8]} 35... Kxh6 {[%clk 0:00:14.3]} 36. Qh8+
{[%clk 0:00:48.2]} 36... Kg6 {[%clk 0:00:13.5]} 37. Qg8+ {[%clk 0:00:44.8]}
37... Kh6 {[%clk 0:00:13.4]} 38. Qh8+ {[%clk 0:00:44.5]} 38... Kg6 {[%clk
0:00:13.6]} 39. Qg8+ {[%clk 0:00:44.4]} 39... Kh6 {[%clk 0:00:13.9]} 40. Qh8+
{[%clk 0:00:44.2]} 1/2-1/2

[Event "*** SCC Grand Prix: Titled Tuesday Blitz"]
[Site "Chess.com"]
[Date "2020.10.13"]
[Round "5"]
[White "gurelediz"]
[Black "youngKID"]
[Result "0-1"]
[WhiteElo "2597"]
[BlackElo "2816"]
[TimeControl "180+1"]
[EndTime "10:55:35 PDT"]
[Termination "youngKID won by resignation"]

1. e4 {[%clk 0:03:00.9]} 1... c5 {[%clk 0:02:56.6]} 2. Nf3 {[%clk 0:03:01.2]}
2... Nc6 {[%clk 0:02:56.5]} 3. d4 {[%clk 0:03:01.5]} 3... cxd4 {[%clk
0:02:56.3]} 4. Nxd4 {[%clk 0:03:02.4]} 4... Nf6 {[%clk 0:02:56.7]} 5. Nc3 {[%clk
0:03:01.7]} 5... e6 {[%clk 0:02:57]} 6. Ndb5 {[%clk 0:03:01.2]} 6... d6 {[%clk
0:02:51.5]} 7. Bf4 {[%clk 0:02:58.1]} 7... e5 {[%clk 0:02:51]} 8. Bg5 {[%clk
0:02:58.7]} 8... a6 {[%clk 0:02:51.6]} 9. Bxf6 {[%clk 0:02:54.9]} 9... gxf6
{[%clk 0:02:51.1]} 10. Na3 {[%clk 0:02:55.4]} 10... b5 {[%clk 0:02:48.8]} 11.
Nd5 {[%clk 0:02:54.5]} 11... Bg7 {[%clk 0:02:44.6]} 12. c4 {[%clk 0:02:46.9]}
12... O-O {[%clk 0:02:36.5]} 13. Bd3 {[%clk 0:02:40.3]} 13... f5 {[%clk
0:02:34.5]} 14. O-O {[%clk 0:02:26.4]} 14... Nd4 {[%clk 0:02:32.5]} 15. exf5
{[%clk 0:02:21.3]} 15... Bxf5 {[%clk 0:01:56.3]} 16. Bxf5 {[%clk 0:02:18.3]}
16... Nxf5 {[%clk 0:01:57.2]} 17. cxb5 {[%clk 0:02:18.3]} 17... axb5 {[%clk
0:01:58.1]} 18. Nxb5 {[%clk 0:02:19]} 18... Qg5 {[%clk 0:01:43.8]} 19. Qf3
{[%clk 0:01:58.7]} 19... Kh8 {[%clk 0:01:43.2]} 20. a4 {[%clk 0:01:52.4]} 20...
Rg8 {[%clk 0:01:25.1]} 21. Ne3 {[%clk 0:01:29]} 21... Nd4 {[%clk 0:01:22.4]} 22.
Nxd4 {[%clk 0:01:10.3]} 22... exd4 {[%clk 0:01:23.3]} 23. Nd5 {[%clk 0:00:52]}
23... d3 {[%clk 0:01:17]} 24. Rfd1 {[%clk 0:00:44.6]} 24... d2 {[%clk
0:01:03.6]} 25. Ne3 {[%clk 0:00:37.1]} 25... Bxb2 {[%clk 0:01:00.4]} 26. Ra2
{[%clk 0:00:37.7]} 26... Bc1 {[%clk 0:00:55]} 27. Rc2 {[%clk 0:00:32.5]} 27...
Rxa4 {[%clk 0:00:46.3]} 28. Qxf7 {[%clk 0:00:30.8]} 28... Rf4 {[%clk 0:00:45.3]}
29. Qd7 {[%clk 0:00:19.9]} 29... Re4 {[%clk 0:00:41.9]} 30. Qh3 {[%clk
0:00:14.1]} 30... d5 {[%clk 0:00:36.2]} 31. Rc7 {[%clk 0:00:13.5]} 31... Qg6
{[%clk 0:00:35.2]} 32. Nf5 {[%clk 0:00:12.3]} 32... Re1+ {[%clk 0:00:34.4]} 0-1

[Event "*** SCC Grand Prix: Titled Tuesday Blitz"]
[Site "Chess.com"]
[Date "2020.10.13"]
[Round "5"]
[White "Guenplen"]
[Black "frederiksvane"]
[Result "1-0"]
[WhiteElo "2864"]
[BlackElo "2690"]
[TimeControl "180+1"]
[EndTime "10:55:36 PDT"]
[Termination "Guenplen won by resignation"]

1. d4 {[%clk 0:03:00.9]} 1... Nf6 {[%clk 0:03:00.1]} 2. Bf4 {[%clk 0:03:00.2]}
2... b6 {[%clk 0:03:00.2]} 3. e3 {[%clk 0:02:55.3]} 3... Bb7 {[%clk 0:03:00.2]}
4. Nf3 {[%clk 0:02:55.1]} 4... Nh5 {[%clk 0:03:00.7]} 5. Bg3 {[%clk 0:02:46.2]}
5... Nxg3 {[%clk 0:02:56.6]} 6. hxg3 {[%clk 0:02:47.1]} 6... g6 {[%clk
0:02:57.2]} 7. c4 {[%clk 0:02:46.2]} 7... Bg7 {[%clk 0:02:57.2]} 8. Nc3 {[%clk
0:02:46.6]} 8... d6 {[%clk 0:02:57.4]} 9. Bd3 {[%clk 0:02:45.3]} 9... Nd7 {[%clk
0:02:57.8]} 10. Be4 {[%clk 0:02:42.7]} 10... c6 {[%clk 0:02:55.2]} 11. Qe2
{[%clk 0:02:42.2]} 11... e6 {[%clk 0:02:48.7]} 12. Bd3 {[%clk 0:02:33.7]} 12...
d5 {[%clk 0:02:46.6]} 13. Rd1 {[%clk 0:02:30.7]} 13... Qe7 {[%clk 0:02:43.1]}
14. cxd5 {[%clk 0:02:21.9]} 14... cxd5 {[%clk 0:02:42.7]} 15. Ba6 {[%clk
0:02:15.8]} 15... Bxa6 {[%clk 0:02:40.6]} 16. Qxa6 {[%clk 0:02:16.7]} 16... O-O
{[%clk 0:02:41.1]} 17. O-O {[%clk 0:02:14.2]} 17... Nb8 {[%clk 0:02:41.2]} 18.
Qb5 {[%clk 0:02:10.6]} 18... Qd7 {[%clk 0:02:41.3]} 19. Rc1 {[%clk 0:02:10.3]}
19... Rc8 {[%clk 0:02:34.4]} 20. Qxd7 {[%clk 0:02:07.1]} 20... Nxd7 {[%clk
0:02:35.3]} 21. Nb5 {[%clk 0:02:07.4]} 21... Bf8 {[%clk 0:02:20.2]} 22. Nc7
{[%clk 0:02:01.8]} 22... Rab8 {[%clk 0:02:18.8]} 23. Na6 {[%clk 0:02:01.5]}
23... Ra8 {[%clk 0:02:15.2]} 24. Ne5 {[%clk 0:01:58.4]} 24... Nxe5 {[%clk
0:02:06.3]} 25. dxe5 {[%clk 0:01:59.3]} 25... Be7 {[%clk 0:01:58.9]} 26. f4
{[%clk 0:01:51.6]} 26... h5 {[%clk 0:01:53.8]} 27. Kf2 {[%clk 0:01:51.1]} 27...
Kf8 {[%clk 0:01:53.6]} 28. Ke2 {[%clk 0:01:50.7]} 28... Bd8 {[%clk 0:01:52]} 29.
Kd3 {[%clk 0:01:44.8]} 29... Ke8 {[%clk 0:01:43.5]} 30. b4 {[%clk 0:01:41.3]}
30... Kd7 {[%clk 0:01:39.3]} 31. b5 {[%clk 0:01:40.9]} 31... Be7 {[%clk
0:01:34.7]} 32. a4 {[%clk 0:01:35.2]} 32... Rxc1 {[%clk 0:01:31]} 33. Rxc1
{[%clk 0:01:34.6]} 33... Rc8 {[%clk 0:01:31.4]} 34. Rxc8 {[%clk 0:01:27.5]}
34... Kxc8 {[%clk 0:01:32.3]} 35. e4 {[%clk 0:01:27.9]} 35... Bc5 {[%clk
0:01:10.4]} 36. exd5 {[%clk 0:01:10.4]} 36... exd5 {[%clk 0:01:11.3]} 37. Ke2
{[%clk 0:01:11]} 37... Be7 {[%clk 0:01:06.9]} 38. Kf3 {[%clk 0:01:09.3]} 38...
Bc5 {[%clk 0:00:58.8]} 39. g4 {[%clk 0:00:46.9]} 39... hxg4+ {[%clk 0:00:59.7]}
40. Kxg4 {[%clk 0:00:47.8]} 40... d4 {[%clk 0:00:59.6]} 41. Kf3 {[%clk
0:00:46.3]} 41... d3 {[%clk 0:00:59.7]} 42. Nxc5 {[%clk 0:00:46]} 42... bxc5
{[%clk 0:01:00.6]} 43. Ke3 {[%clk 0:00:45.6]} 43... c4 {[%clk 0:01:00.9]} 44. a5
{[%clk 0:00:42.5]} 44... Kd7 {[%clk 0:00:52.9]} 45. g4 {[%clk 0:00:40.1]} 1-0